bitfinex-derivatives/quotes_BTCF0:USTF0_20241008
["timestamp","ask_amount","ask_price","bid_price","bid_amount"]
[1728418662183,0.08224389,62289.0,62288.0,0.53416603]
[1728418663076,0.08224389,62289.0,62288.0,0.64613363]
[1728418663279,0.08224389,62289.0,62288.0,0.53416603]
[1728418663473,0.00193689,62289.0,62288.0,0.53416603]
[1728418663870,0.0037,62296.0,62295.0,0.080299]
[1728418664075,0.080296,62298.0,62297.0,0.080295]
[1728418664284,0.0037,62303.0,62297.0,0.32883914]
[1728418664474,0.12,62303.0,62302.0,0.08029]
[1728418664677,0.12,62303.0,62302.0,0.32883414]
[1728418665285,0.06374982,62303.0,62302.0,0.32883414]
[1728418665872,0.14403882,62303.0,62302.0,0.32883414]
[1728418666987,0.09582437,62303.0,62302.0,0.32883414]
[1728418667180,0.3608,62304.0,62303.0,0.080289]
[1728418667485,0.3608,62304.0,62303.0,0.51616386]
[1728418668279,0.3608,62304.0,62303.0,0.62811774]
[1728418668875,0.3608,62304.0,62303.0,0.38224288]
[1728418669180,0.3608,62304.0,62303.0,0.270289]
[1728418669785,0.3608,62304.0,62303.0,0.273289]
[1728418670381,0.3608,62304.0,62303.0,0.275289]
[1728418670780,0.080282,62309.0,62303.0,0.275289]
[1728418670982,0.080282,62309.0,62308.0,0.080281]
[1728418672588,0.270282,62309.0,62308.0,0.080281]
[1728418672977,0.080286,62306.0,62305.0,0.080284]
[1728418673984,0.276281,62309.0,62308.0,0.080282]
[1728418674481,0.273281,62309.0,62308.0,0.080282]
[1728418674991,0.270281,62309.0,62308.0,0.080282]
[1728418675693,0.273281,62309.0,62308.0,0.080282]
[1728418675889,0.083281,62309.0,62308.0,0.080282]
[1728418676088,0.006,62309.0,62308.0,0.080282]
[1728418677395,0.006,62309.0,62308.0,0.16026808]
[1728418677883,0.006,62309.0,62308.0,0.27182115]
[1728418678297,0.006,62309.0,62308.0,0.16026808]
[1728418678495,0.080278,62311.0,62310.0,0.08028]
[1728418679701,0.090278,62311.0,62310.0,0.08228]
[1728418680295,0.01,62311.0,62310.0,0.08228]
[1728418682790,0.01,62311.0,62310.0,0.11076071]
[1728418683192,0.01,62311.0,62310.0,0.22201294]
[1728418683494,0.0037,62317.0,62316.0,0.080272]
[1728418683800,0.3608,62324.0,62316.0,0.080272]
[1728418683801,0.080266,62321.0,62320.0,0.080263]
[1728418684894,0.080266,62321.0,62320.0,0.081263]
[1728418685088,0.086266,62321.0,62320.0,0.081263]
[1728418685394,0.006,62321.0,62320.0,0.081263]
[1728418685989,0.006,62321.0,62320.0,0.271263]
[1728418686400,0.011,62321.0,62320.0,0.271263]
[1728418688797,0.091265,62321.0,62320.0,0.11081546]
[1728418691700,0.011,62321.0,62320.0,0.11081546]
[1728418692687,0.011,62321.0,62320.0,0.30081546]
[1728418694193,0.011,62321.0,62320.0,0.11081546]
[1728418694498,0.011,62321.0,62320.0,0.30081546]
[1728418697295,0.011,62321.0,62320.0,0.11081546]
[1728418700008,0.091265,62321.0,62320.0,0.11081546]
[1728418701104,0.011,62321.0,62320.0,0.11081546]
[1728418706098,0.0428239,62321.0,62320.0,0.11081546]
[1728418706702,0.6038889,62321.0,62320.0,0.001]
[1728418706906,0.64320171,62321.0,62320.0,0.001]
[1728418708111,0.080276,62313.0,62312.0,0.0037]
[1728418708427,0.080276,62313.0,62297.0,0.0037]
[1728418708428,1.15194944,62313.0,62297.0,0.0037]
[1728418708712,0.080304,62291.0,62289.0,0.0081]
[1728418709010,0.62195914,62290.0,62284.0,0.0024081]
[1728418709310,0.0318239,62289.0,62284.0,0.03159016]
[1728418709498,0.0318239,62288.0,62284.0,0.0024081]
[1728418709702,0.0318239,62287.0,62284.0,0.2727201]
[1728418709898,0.3608,62290.0,62284.0,0.2727201]
[1728418710107,0.3608,62290.0,62284.0,0.0827201]
[1728418710108,0.03102863,62289.0,62284.0,0.0827201]
[1728418710299,0.3608,62290.0,62284.0,0.0827201]
[1728418710703,0.001,62288.0,62284.0,0.0967201]
[1728418711016,0.001,62288.0,62284.0,0.1077201]
[1728418711406,0.3628,62290.0,62284.0,0.1077201]
[1728418713004,0.001,62288.0,62284.0,0.1077201]
[1728418713318,0.001,62288.0,62287.0,0.080309]
[1728418714229,0.080307,62289.0,62286.0,0.06395439]
[1728418714520,0.3618,62290.0,62286.0,0.06395439]
[1728418714718,0.082308,62288.0,62287.0,0.017]
[1728418715114,0.082308,62288.0,62287.0,0.08095439]
[1728418715417,0.081308,62288.0,62287.0,0.012]
[1728418716715,0.080308,62288.0,62286.0,0.017]
[1728418717012,0.081308,62288.0,62287.0,0.012]
[1728418717607,0.082308,62288.0,62287.0,0.024]
[1728418720628,0.082308,62288.0,62287.0,0.104309]
[1728418720816,0.034084,62288.0,62287.0,0.104309]
[1728418721017,0.002,62288.0,62287.0,0.104309]
[1728418721623,0.082308,62288.0,62287.0,0.104309]
[1728418732236,0.082308,62288.0,62287.0,0.16826339]
[1728418733234,0.082308,62288.0,62287.0,0.104309]
[1728418734331,0.082308,62288.0,62287.0,0.29595282]
[1728418735327,0.082308,62288.0,62287.0,0.21618675]
[1728418735532,0.082308,62288.0,62287.0,0.104309]
[1728418735734,0.082308,62288.0,62287.0,0.21625358]
[1728418737230,0.082308,62288.0,62287.0,0.34997907]
[1728418738238,0.082308,62288.0,62287.0,0.35076227]
[1728418738540,0.082308,62288.0,62287.0,0.66196129]
[1728418740642,0.082308,62288.0,62287.0,0.66194278]
[1728418740846,0.03408326,62288.0,62287.0,0.66194278]
[1728418741046,0.15408326,62288.0,62287.0,0.66194278]
[1728418742341,0.03408326,62288.0,62287.0,0.66194278]
[1728418743138,0.03408326,62288.0,62287.0,0.50634132]
[1728418744044,0.12,62290.0,62287.0,0.25990179]
[1728418744045,0.09782082,62290.0,62287.0,0.25990179]
[1728418744349,0.09782082,62290.0,62287.0,0.104309]
[1728418744549,0.080308,62288.0,62287.0,0.104309]
[1728418745859,0.080308,62288.0,62287.0,0.092309]
[1728418746146,0.080308,62288.0,62287.0,0.105309]
[1728418746351,0.081308,62288.0,62287.0,0.117309]
[1728418746760,0.082308,62288.0,62287.0,0.117309]
[1728418750662,0.082308,62288.0,62287.0,0.16552855]
[1728418751068,0.082308,62288.0,62287.0,0.36228259]
[1728418751961,0.082308,62288.0,62287.0,0.51689225]
[1728418755359,0.002,62288.0,62287.0,0.48225789]
[1728418755653,0.0037,62295.0,62287.0,0.48225789]
[1728418755654,0.0037,62295.0,62294.0,0.0803]
[1728418755859,0.3608,62297.0,62294.0,0.0803]
[1728418755860,0.441097,62297.0,62296.0,0.080298]
[1728418756058,0.441097,62297.0,62296.0,0.47968412]
[1728418756258,0.441097,62297.0,62296.0,0.32524689]
[1728418756472,0.3608,62297.0,62296.0,0.32524689]
[1728418756967,0.3608,62297.0,62296.0,0.32924689]
[1728418756968,0.441096,62297.0,62296.0,0.32924689]
[1728418758371,0.080296,62297.0,62296.0,0.32924689]
[1728418759169,0.080296,62297.0,62296.0,0.084298]
[1728418759367,0.080296,62297.0,62296.0,0.10774582]
[1728418759872,0.080296,62297.0,62296.0,0.11074582]
[1728418761063,0.3608,62300.0,62299.0,0.080294]
[1728418761064,0.441095,62300.0,62299.0,0.080294]
[1728418763365,0.080289,62303.0,62302.0,0.080287]
[1728418763563,0.100289,62303.0,62302.0,0.080287]
[1728418764566,0.080289,62303.0,62302.0,0.080287]
[1728418765069,0.083289,62303.0,62302.0,0.080287]
[1728418765664,0.086289,62303.0,62302.0,0.080287]
[1728418766661,0.086289,62303.0,62302.0,0.16052989]
[1728418766858,0.086289,62303.0,62302.0,0.19124364]
[1728418767669,0.006,62303.0,62302.0,0.27135536]
[1728418767866,0.006,62303.0,62302.0,0.19124364]
[1728418768466,0.080287,62304.0,62302.0,0.11095664]
[1728418768667,0.080287,62304.0,62303.0,0.39135096]
[1728418769270,0.080287,62304.0,62303.0,0.28039432]
[1728418769774,0.082287,62304.0,62303.0,0.28039432]
[1728418770269,0.082287,62304.0,62303.0,0.200289]
[1728418770868,0.083287,62304.0,62303.0,0.200289]
[1728418771470,0.082287,62304.0,62303.0,0.200289]
[1728418771875,0.083287,62304.0,62303.0,0.200289]
[1728418772073,0.084287,62304.0,62303.0,0.200289]
[1728418772267,0.084287,62304.0,62303.0,0.22299663]
[1728418772779,0.082287,62304.0,62303.0,0.22299663]
[1728418773276,0.082287,62304.0,62303.0,0.10299663]
[1728418774172,0.082287,62304.0,62303.0,0.080289]
[1728418774682,0.083287,62304.0,62303.0,0.080289]
[1728418775280,0.084287,62304.0,62303.0,0.080289]
[1728418777769,0.083287,62304.0,62303.0,0.080289]
[1728418778284,0.081287,62304.0,62303.0,0.080289]
[1728418778585,0.083287,62304.0,62303.0,0.080289]
[1728418778781,0.084287,62304.0,62303.0,0.080289]
[1728418779185,0.083287,62304.0,62303.0,0.080289]
[1728418780779,0.084287,62304.0,62303.0,0.080289]
[1728418781678,0.083287,62304.0,62303.0,0.080289]
[1728418782679,0.084287,62304.0,62303.0,0.080289]
[1728418784174,0.004,62304.0,62303.0,0.27129808]
[1728418784487,0.003,62304.0,62303.0,0.19119276]
[1728418785188,0.003,62304.0,62303.0,0.1911897]
[1728418785390,0.082287,62304.0,62303.0,0.1911897]
[1728418787081,0.083287,62304.0,62303.0,0.1911897]
[1728418787697,0.082287,62304.0,62303.0,0.1911897]
[1728418788493,0.084287,62304.0,62303.0,0.1911897]
[1728418791784,0.004,62304.0,62303.0,0.1911897]
[1728418792385,0.083978,62311.0,62310.0,0.20028]
[1728418792586,0.080278,62311.0,62310.0,0.40749944]
[1728418792789,0.531071,62317.0,62313.0,0.080272]
[1728418792790,0.080275,62314.0,62313.0,0.080272]
[1728418792977,0.170275,62314.0,62313.0,0.3111727]
[1728418793183,0.00084,62317.0,62316.0,0.080272]
[1728418793387,0.44107,62318.0,62317.0,0.080271]
[1728418793581,0.44107,62318.0,62317.0,0.1907344]
[1728418794181,0.44107,62318.0,62317.0,0.16047397]
[1728418794789,0.3608,62318.0,62317.0,0.27086424]
[1728418795090,0.3608,62318.0,62317.0,0.27286424]
[1728418795295,0.3608,62318.0,62317.0,0.27280537]
[1728418795486,0.3608,62318.0,62317.0,0.16347397]
[1728418795887,0.3608,62318.0,62317.0,0.18606154]
[1728418796088,0.3608,62318.0,62317.0,0.18906154]
[1728418796285,0.39392926,62318.0,62317.0,0.086271]
[1728418796492,0.47419826,62318.0,62317.0,0.006]
[1728418797995,0.49731056,62318.0,62317.0,0.006]
[1728418799092,0.53662748,62318.0,62317.0,0.006]
[1728418799505,0.53662748,62318.0,62317.0,0.086271]
[1728418800104,0.53661012,62318.0,62317.0,0.086271]
[1728418800602,0.49729321,62318.0,62317.0,0.086271]
[1728418802401,0.59729321,62318.0,62317.0,0.086271]
[1728418803292,0.57418091,62318.0,62317.0,0.086271]
[1728418803498,0.57418091,62318.0,62317.0,0.006]
[1728418804303,0.541069,62318.0,62317.0,0.07012436]
[1728418804701,0.541069,62318.0,62317.0,0.15039536]
[1728418806000,0.180269,62318.0,62317.0,0.15039536]
[1728418806904,0.180269,62318.0,62317.0,0.07012436]
[1728418807104,1.261669,62318.0,62317.0,0.006]
[1728418808109,0.200277,62312.0,62311.0,0.0480657]
[1728418808292,0.080281,62309.0,62308.0,0.04806793]
[1728418808499,0.12,62308.0,62303.0,0.06412436]
[1728418808697,0.200287,62304.0,62303.0,0.06412436]
[1728418809208,0.080289,62303.0,62302.0,0.14441436]
[1728418810909,0.081289,62303.0,62302.0,0.14441436]
[1728418811405,0.081289,62303.0,62302.0,0.08029]
[1728418811897,0.001,62303.0,62302.0,0.08029]
[1728418812299,0.002,62303.0,62302.0,0.08029]
[1728418815214,0.001,62303.0,62302.0,0.08029]
[1728418815913,0.082289,62303.0,62302.0,0.08029]
[1728418818800,0.002,62303.0,62302.0,0.08029]
[1728418819212,0.082289,62303.0,62302.0,0.08029]
[1728418819400,0.082289,62303.0,62302.0,0.19060304]
[1728418820511,0.002,62303.0,62302.0,0.19060304]
[1728418820708,0.082289,62303.0,62302.0,0.19060304]
[1728418820908,0.002,62303.0,62302.0,0.19060304]
[1728418821417,0.082289,62303.0,62302.0,0.19060304]
[1728418822010,0.081289,62303.0,62302.0,0.19060304]
[1728418822610,0.082289,62303.0,62302.0,0.19060304]
[1728418822818,0.081289,62303.0,62302.0,0.19060304]
[1728418823012,0.082289,62303.0,62302.0,0.19060304]
[1728418824720,0.082289,62303.0,62302.0,0.1905764]
[1728418826520,0.082289,62303.0,62302.0,0.08029]
[1728418829109,0.002,62303.0,62302.0,0.08029]
[1728418829319,0.082289,62303.0,62302.0,0.08029]
[1728418830118,0.082289,62303.0,62302.0,0.16037942]
[1728418830520,0.082289,62303.0,62302.0,0.27082906]
[1728418830917,0.082289,62303.0,62302.0,0.08029]
[1728418831525,0.082289,62303.0,62302.0,0.16037942]
[1728418831828,0.082289,62303.0,62302.0,0.27081888]
[1728418832224,0.082289,62303.0,62302.0,0.16037942]
[1728418832529,0.082289,62303.0,62302.0,0.27088454]
[1728418833421,0.082289,62303.0,62302.0,0.19079512]
[1728418834427,0.082289,62303.0,62302.0,0.08029]
[1728418835316,0.11504075,62303.0,62302.0,0.08029]
[1728418838719,0.03475175,62303.0,62302.0,0.08029]
[1728418839733,0.03481224,62303.0,62302.0,0.08029]
[1728418839924,0.11510124,62303.0,62302.0,0.08029]
[1728418841630,0.082289,62303.0,62302.0,0.32326183]
[1728418844726,0.082289,62303.0,62302.0,0.32324632]
[1728418849436,0.11508355,62303.0,62302.0,0.08029]
[1728418850034,0.11508811,62303.0,62302.0,0.08029]
[1728418856537,0.082289,62303.0,62302.0,0.19119185]
[1728418859029,0.082289,62303.0,62302.0,0.28759784]
[1728418859641,0.082289,62303.0,62302.0,0.19119185]
[1728418859941,0.082289,62303.0,62302.0,0.19120819]
[1728418860629,0.002,62303.0,62302.0,0.19120819]
[1728418861342,0.082289,62303.0,62302.0,0.19120819]
[1728418861738,0.082289,62303.0,62302.0,0.28760767]
[1728418862838,0.082289,62303.0,62302.0,0.19120819]
[1728418864455,0.082289,62303.0,62302.0,0.08029]
[1728418864456,0.11499623,62303.0,62302.0,0.08029]
[1728418865146,0.11498283,62303.0,62302.0,0.08029]
[1728418870744,0.03469383,62303.0,62302.0,0.08029]
[1728418870946,0.03469383,62303.0,62302.0,0.44109]
[1728418871145,0.0037,62311.0,62310.0,0.08028]
[1728418871345,0.0037,62318.0,62310.0,0.56108]
[1728418871548,0.080269,62319.0,62317.0,0.12]
[1728418871740,0.080269,62319.0,62318.0,0.1908529]
[1728418872247,0.080269,62319.0,62318.0,0.16050146]
[1728418872750,0.080269,62319.0,62318.0,0.16150146]
[1728418873134,0.0694,62324.0,62318.0,0.001]
[1728418873337,0.080265,62322.0,62321.0,0.080264]
[1728418873539,0.080265,62322.0,62321.0,0.200264]
[1728418874642,0.082265,62322.0,62321.0,0.080264]
[1728418875147,0.080269,62319.0,62318.0,0.080268]
[1728418876651,0.080269,62319.0,62318.0,0.081268]
[1728418877546,0.080269,62319.0,62318.0,0.082268]
[1728418883357,0.180269,62319.0,62318.0,0.082268]
[1728418887461,0.300269,62319.0,62318.0,0.002]
[1728418887645,0.080276,62313.0,62312.0,0.0037]
[1728418887845,0.08028,62310.0,62306.0,0.080285]
[1728418888052,0.3608,62314.0,62305.0,0.12240734]
[1728418888053,0.3608,62309.0,62308.0,0.200282]
[1728418888256,0.3608,62314.0,62313.0,0.080276]
[1728418888450,0.4708,62314.0,62313.0,0.200276]
[1728418888654,0.551074,62314.0,62313.0,0.200276]
[1728418889160,0.441074,62314.0,62313.0,0.200276]
[1728418890757,0.454074,62314.0,62313.0,0.201276]
[1728418890959,0.4868413,62314.0,62313.0,0.201276]
[1728418891159,0.4988413,62314.0,62313.0,0.202276]
[1728418891857,0.4988413,62314.0,62313.0,0.22494236]
[1728418894660,0.466074,62314.0,62313.0,0.22494236]
[1728418895260,0.466074,62314.0,62313.0,0.41561906]
[1728418895769,0.466074,62314.0,62313.0,0.29561906]
[1728418896463,0.466074,62314.0,62313.0,0.2153866]
[1728418896859,0.466074,62314.0,62313.0,0.29551755]
[1728418897063,0.105274,62314.0,62313.0,0.29551755]
[1728418897258,0.025,62314.0,62313.0,0.3353866]
[1728418897459,0.025,62314.0,62313.0,0.6961866]
[1728418897862,0.025,62314.0,62313.0,0.79258608]
[1728418898566,0.0037,62321.0,62320.0,0.080267]
[1728418898763,0.080264,62322.0,62321.0,0.080264]
[1728418898962,0.080264,62322.0,62321.0,0.16042362]
[1728418899169,0.080264,62322.0,62321.0,0.27075214]
[1728418899368,0.080264,62322.0,62321.0,0.27075193]
[1728418900162,0.080264,62322.0,62321.0,0.19059231]
[1728418900459,0.082264,62322.0,62321.0,0.19059231]
[1728418900660,0.083264,62322.0,62321.0,0.19059231]
[1728418901664,0.083264,62322.0,62321.0,0.14443128]
[1728418902362,0.083264,62322.0,62321.0,0.080264]
[1728418902568,0.083264,62322.0,62321.0,0.14443128]
[1728418904161,0.083264,62322.0,62321.0,0.080264]
[1728418904368,0.083264,62322.0,62321.0,0.10360265]
[1728418909589,0.20513018,62322.0,62321.0,0.10360265]
[1728418912383,0.32513018,62322.0,62321.0,0.080264]
[1728418913786,0.080271,62317.0,62316.0,0.080269]
[1728418913994,0.39285682,62317.0,62316.0,0.080269]
[1728418915191,0.39285682,62317.0,62316.0,0.088269]
[1728418915883,0.75365682,62317.0,62316.0,0.088269]
[1728418916184,0.80293765,62317.0,62316.0,0.088269]
[1728418916381,0.75365682,62317.0,62316.0,0.088269]
[1728418916582,0.681071,62317.0,62316.0,0.19849975]
[1728418917682,1.162471,62317.0,62316.0,0.008]
[1728418917880,1.162471,62317.0,62309.0,0.0037]
[1728418917881,0.080277,62312.0,62309.0,0.08390246]
[1728418918187,0.080277,62312.0,62307.0,0.09619154]
[1728418918188,0.080282,62308.0,62307.0,0.16048546]
[1728418918373,0.080283,62307.0,62306.0,0.08020246]
[1728418918581,0.200283,62307.0,62306.0,0.080285]
[1728418918976,0.200283,62307.0,62306.0,0.16048746]
[1728418919183,0.200283,62307.0,62306.0,0.080285]
[1728418919984,0.201283,62307.0,62306.0,0.080285]
[1728418920683,0.081283,62307.0,62306.0,0.080285]
[1728418920886,0.085283,62307.0,62306.0,0.2705942]
[1728418921089,0.085283,62307.0,62306.0,0.27057221]
[1728418921285,0.085283,62307.0,62306.0,0.080285]
[1728418921789,0.085283,62307.0,62306.0,0.16048746]
[1728418921987,0.085283,62307.0,62306.0,0.080285]
[1728418927183,0.080285,62306.0,62305.0,0.00240734]
[1728418927387,0.080285,62306.0,62305.0,0.08269334]
[1728418928400,0.086285,62306.0,62305.0,0.08269334]
[1728418930895,0.006,62306.0,62305.0,0.20269334]
[1728418931402,0.086285,62306.0,62305.0,0.20269334]
[1728418931585,0.086285,62306.0,62305.0,0.39309659]
[1728418932191,0.086285,62306.0,62305.0,0.2828958]
[1728418932389,0.086285,62306.0,62305.0,0.39310188]
[1728418933897,0.006,62306.0,62305.0,0.39310188]
[1728418934101,0.006,62306.0,62305.0,0.31289942]
[1728418934400,0.086285,62306.0,62305.0,0.39299386]
[1728418934597,0.086285,62306.0,62305.0,0.31289942]
[1728418934797,0.086285,62306.0,62305.0,0.39299562]
[1728418935008,0.086285,62306.0,62305.0,0.39299548]
[1728418935308,0.086285,62306.0,62305.0,0.31289942]
[1728418935905,0.086285,62306.0,62305.0,0.39300034]
[1728418936500,0.086285,62306.0,62305.0,0.31289942]
[1728418936895,0.086285,62306.0,62305.0,0.39300606]
[1728418937305,0.176285,62306.0,62305.0,0.39300606]
[1728418937689,0.176285,62306.0,62305.0,0.31289942]
[1728418937889,0.096,62306.0,62305.0,0.31289942]
[1728418938708,0.12901966,62306.0,62305.0,0.20269334]
[1728418938901,0.096,62306.0,62305.0,0.20269334]
[1728418939096,0.20932111,62306.0,62305.0,0.08269334]
[1728418939292,0.32932111,62306.0,62305.0,0.00240734]
[1728418941707,0.08029,62302.0,62301.0,0.0012]
[1728418941898,0.08029,62302.0,62295.0,0.0037]
[1728418941899,0.080298,62296.0,62295.0,0.0037]
[1728418942106,0.080299,62295.0,62294.0,0.10395547]
[1728418942608,0.62335349,62295.0,62291.0,0.080303]
[1728418942911,0.200303,62292.0,62291.0,0.080303]
[1728418943109,0.11285649,62292.0,62291.0,0.080303]
[1728418943304,0.080303,62292.0,62291.0,0.080303]
[1728418943807,0.080307,62289.0,62288.0,0.10315579]
[1728418944109,0.080307,62289.0,62288.0,0.080307]
[1728418945599,0.190307,62289.0,62288.0,0.080307]
[1728418945797,0.080307,62289.0,62288.0,0.080307]
[1728418946209,0.11356726,62289.0,62288.0,0.094307]
[1728418946399,0.081307,62289.0,62288.0,0.094307]
[1728418946709,0.09682238,62290.0,62288.0,0.35057663]
[1728418946909,0.21682238,62290.0,62289.0,0.24326963]
[1728418947702,0.21682238,62290.0,62289.0,0.11098261]
[1728418947907,0.29712738,62290.0,62289.0,0.11098261]
[1728418948412,0.29812738,62290.0,62289.0,0.20714513]
[1728418948617,0.29812738,62290.0,62289.0,0.11098261]
[1728418948905,0.080307,62289.0,62288.0,0.027]
[1728418949110,0.190307,62289.0,62288.0,0.13743984]
[1728418949411,0.190307,62289.0,62288.0,0.21753149]
[1728418949811,0.190307,62289.0,62288.0,0.20353149]
[1728418950001,1.19164,62289.0,62288.0,0.013]
[1728418950203,0.080317,62281.0,62280.0,0.0037]
[1728418950399,0.08032,62279.0,62275.0,0.00240833]
[1728418950719,0.4808,62276.0,62275.0,0.00240833]
[1728418951101,0.561123,62276.0,62275.0,0.00240833]
[1728418952812,0.561123,62276.0,62275.0,0.01240833]
[1728418953022,0.561123,62276.0,62275.0,0.01940833]
[1728418953023,0.562123,62276.0,62275.0,0.01940833]
[1728418953312,0.563123,62276.0,62275.0,0.01940833]
[1728418955016,0.58628254,62276.0,62275.0,0.01940833]
[1728418955806,0.543123,62276.0,62275.0,0.09973333]
[1728418962816,0.182323,62276.0,62275.0,0.09973333]
[1728418963930,0.102,62276.0,62275.0,0.09973333]
[1728418964219,0.102,62276.0,62275.0,0.17171533]
[1728418964419,0.102,62276.0,62275.0,0.21966832]
[1728418964621,0.102,62276.0,62275.0,0.23701533]
[1728418964622,0.002,62276.0,62275.0,0.23701533]
[1728418966723,0.080319,62280.0,62279.0,0.08032]
[1728418968036,0.080319,62280.0,62279.0,0.08532]
[1728418968217,0.080316,62282.0,62279.0,0.005]
[1728418968418,0.3608,62283.0,62281.0,0.12]
[1728418968625,0.491114,62283.0,62282.0,0.200316]
[1728418968825,0.491114,62283.0,62282.0,0.24828212]
[1728418969421,0.491114,62283.0,62282.0,0.200316]
[1728418970317,0.491114,62283.0,62282.0,0.202316]
[1728418970513,0.491114,62283.0,62282.0,0.203316]
[1728418974532,0.441114,62283.0,62282.0,0.203316]
[1728418975322,0.441114,62283.0,62282.0,0.22635422]
[1728418982530,0.441114,62283.0,62282.0,0.29833622]
[1728418983733,0.441114,62283.0,62282.0,0.40827524]
[1728418988041,0.441114,62283.0,62282.0,0.40837576]
[1728418989237,0.441114,62283.0,62282.0,0.18502154]
[1728418990839,0.551114,62283.0,62282.0,0.18502154]
[1728418991028,1.632794,62283.0,62282.0,0.18502154]
[1728418991231,1.632794,62283.0,62279.0,0.08029542]
[1728418991232,0.080316,62282.0,62279.0,0.08029542]
[1728418991535,0.08032,62279.0,62278.0,0.08030038]
[1728418991735,0.30032,62279.0,62278.0,0.08030038]
[1728418992434,0.30032,62279.0,62277.0,0.08030038]
[1728418992639,0.200321,62278.0,62277.0,0.08030038]
[1728418992836,0.310321,62278.0,62277.0,0.08030038]
[1728418993437,0.310321,62278.0,62277.0,0.008]
[1728418995040,0.191321,62278.0,62277.0,0.013]
[1728418995248,0.191321,62278.0,62277.0,0.18848452]
[1728418995249,0.002,62278.0,62277.0,0.18848452]
[1728418995547,0.3608,62280.0,62279.0,0.08032]
[1728418995749,0.3608,62280.0,62279.0,0.33130558]
[1728418995750,0.511118,62280.0,62279.0,0.33130558]
[1728418995949,0.4308,62280.0,62279.0,0.33130558]
[1728418996240,0.4308,62280.0,62278.0,0.0655]
[1728418996241,0.5508,62280.0,62278.0,0.0655]
[1728418996440,0.5508,62280.0,62277.0,0.012]
[1728418996441,0.08032,62279.0,62277.0,0.012]
[1728418996644,0.080321,62278.0,62277.0,0.012]
[1728418996833,0.200321,62278.0,62277.0,0.012]
[1728418997941,0.200321,62278.0,62277.0,0.005]
[1728418998140,0.080325,62275.0,62274.0,0.09631567]
[1728418998344,0.551125,62275.0,62274.0,0.09631567]
[1728418998540,0.080326,62274.0,62273.0,0.09631567]
[1728418998745,0.501126,62274.0,62272.0,0.200328]
[1728418998946,0.080327,62273.0,62272.0,0.200328]
[1728418999248,0.080327,62273.0,62272.0,0.12]
[1728418999446,0.001,62275.0,62272.0,0.12]
[1728418999636,0.001,62275.0,62274.0,0.200326]
[1728419000538,0.001,62275.0,62274.0,0.080326]
[1728419001347,0.080323,62277.0,62273.0,0.1395]
[1728419001547,0.160648,62277.0,62276.0,0.080323]
[1728419002251,0.080323,62277.0,62276.0,0.080323]
[1728419003137,0.080323,62277.0,62276.0,0.089323]
[1728419003138,0.081323,62277.0,62276.0,0.089323]
[1728419004554,0.082323,62277.0,62276.0,0.095323]
[1728419006642,0.182323,62277.0,62276.0,0.095323]
[1728419007046,0.182323,62277.0,62276.0,0.20523023]
[1728419007453,0.182323,62277.0,62276.0,0.27073023]
[1728419007748,0.182323,62277.0,62276.0,0.27073435]
[1728419009546,0.182323,62277.0,62276.0,0.3670337]
[1728419009953,0.182323,62277.0,62276.0,0.27073435]
[1728419010255,0.182323,62277.0,62276.0,0.3670337]
[1728419012349,0.182323,62277.0,62276.0,0.27073435]
[1728419013556,0.182323,62277.0,62276.0,0.3670337]
[1728419013955,0.182323,62277.0,62276.0,0.160823]
[1728419015355,0.102,62277.0,62276.0,0.160823]
[1728419015748,0.082322,62277.0,62276.0,0.160823]
[1728419018960,0.002,62277.0,62276.0,0.350823]
[1728419020464,0.002,62277.0,62276.0,0.280823]
[1728419020857,0.002,62277.0,62276.0,0.32898708]
[1728419021568,0.002,62277.0,62276.0,0.280823]
[1728419022068,0.002,62277.0,62276.0,0.39059879]
[1728419022475,0.002,62277.0,62276.0,0.48692621]
[1728419023164,0.002,62277.0,62276.0,0.39060264]
[1728419024562,0.0037,62284.0,62283.0,0.080314]
[1728419024769,0.080309,62288.0,62287.0,0.080308]
[1728419025070,0.080309,62288.0,62287.0,0.30982916]
[1728419025761,0.085309,62288.0,62287.0,0.30982916]
[1728419026470,0.085309,62288.0,62287.0,0.39002476]
[1728419026672,0.085309,62288.0,62287.0,0.38986314]
[1728419026976,0.088309,62288.0,62287.0,0.38987258]
[1728419027268,0.088309,62288.0,62287.0,0.2805036]
[1728419027472,0.084309,62288.0,62287.0,0.200308]
[1728419027960,0.084309,62288.0,62287.0,0.263308]
[1728419028264,0.081309,62288.0,62287.0,0.263308]
[1728419028864,0.081309,62288.0,62287.0,0.28612375]
[1728419029063,0.15755562,62288.0,62287.0,0.28612375]
[1728419029568,0.15655562,62288.0,62287.0,0.28812375]
[1728419029973,0.15655562,62288.0,62287.0,0.265308]
[1728419030161,0.15755562,62288.0,62287.0,0.263308]
[1728419030557,0.15555562,62288.0,62287.0,0.263308]
[1728419031765,0.15655562,62288.0,62287.0,0.263308]
[1728419032273,0.15555562,62288.0,62287.0,0.263308]
[1728419033767,0.15455562,62288.0,62287.0,0.263308]
[1728419035465,0.15455562,62288.0,62287.0,0.264308]
[1728419035664,0.15555562,62288.0,62287.0,0.264308]
[1728419036270,0.15555562,62288.0,62287.0,0.263308]
[1728419036874,0.15455562,62288.0,62287.0,0.265308]
[1728419037173,0.120309,62288.0,62287.0,0.265308]
[1728419037669,0.121309,62288.0,62287.0,0.263308]
[1728419038472,0.121309,62288.0,62287.0,0.266308]
[1728419038670,0.120309,62288.0,62287.0,0.266308]
[1728419038875,0.120309,62288.0,62287.0,0.264308]
[1728419039179,0.120309,62288.0,62287.0,0.003]
[1728419039564,0.120309,62288.0,62287.0,0.002]
[1728419040165,0.120309,62288.0,62287.0,0.001]
[1728419040361,0.080309,62287.0,62286.0,0.08031]
[1728419040567,0.310309,62287.0,62286.0,0.08031]
[1728419042082,0.11,62287.0,62286.0,0.20031]